Cogmind - Beta 12 @@@ ROGUE MODE // 2023.03.14 @ 15:27:07 Player: Peregrine Result: Destroyed by G-47 Trooper with Particle Gun Performance ------------- Evolutions (0) 0 Regions Visited (2) 400 Robots Destroyed (11) 55 Value Destroyed (121) 121 Prototype IDs (0) 0 Alien Tech Used (0) 0 Bonus (0) 0 TOTAL SCORE: 576 Bonus ------- None Cogmind --------- Core Integrity 0/250 Matter 183/300 Energy 100/100 System Corruption 15% Temperature Cool (96) Movement Walking (120) Location -10/Mines Parts ------- > --- POWER (1) -------- (None) > --- PROPULSION (2) --- Flexi-carbon Leg Wheel > --- UTILITY (2) ------ (None) > --- WEAPON (2) ------- Bore Cannon > --- INVENTORY (5) ---- (None) Peak State ------------ > --- POWER ------------ Light Ion Engine > --- PROPULSION ------- Flexi-carbon Leg Flight Unit > --- UTILITY ---------- Small Storage Unit Improved Terrain Scanner > --- WEAPON ----------- Light Assault Rifle Bore Cannon > --- INVENTORY -------- Light Ion Engine Flight Unit Flight Unit [Rating: 17] Favorites ----------- Power Light Ion Engine Engine Light Ion Engine Propulsion Compact Wheel Leg Flexi-carbon Leg Wheel Compact Wheel Flight Unit Flight Unit Utility Small Storage Unit Device Improved Terrain Scanner Storage Small Storage Unit Weapon EM Pulse Gun Energy Gun EM Pulse Gun Ballistic Gun Assault Rifle Ballistic Cannon Bore Cannon Build | -11 -10 -10 ------- Run | Jun Mat Min Slots Evolved . | . . . Power . | . . . Propulsion . | . . . Utility . | . . . Weapon . | . . . Parts Attached 25 | 7 7 11 Power 3 | 1 1 1 Engine 3 | 1 1 1 Core . | . . . Reactor . | . . . Propulsion 14 | 2 6 6 Treads . | . . . Leg 2 | . . 2 Wheel 4 | 2 . 2 Hover . | . . . Flight 8 | . 6 2 Utility 3 | 2 . 1 Device 2 | 1 . 1 Storage 1 | 1 . . Processor . | . . . Hackware . | . . . Protection . | . . . Artifact . | . . . Weapon 5 | 2 . 3 Energy Gun 1 | 1 . . Energy Cannon . | . . . Ballistic Gun 2 | 1 . 1 Ballistic Cannon 2 | . . 2 Launcher . | . . . Special Weapon . | . . . Impact Weapon . | . . . Slashing Weapon . | . . . Piercing Weapon . | . . . Special Melee Weapon . | . . . Unidentified Prototypes . | . . . Parts Lost 10 | . 1 9 Power 2 | . . 2 Propulsion 6 | . 1 5 Utility 1 | . . 1 Weapon 1 | . . 1 Highest Loss Streak 9 | . 1 9 To Critical Strikes . | . . . Average Slot Usage (%) 67 | . 79 46 Engine 11 | . 12 9 Leg 1 | . . 4 Wheel 12 | . 15 8 Flight 11 | . 12 9 Device 5 | . 8 . Storage 10 | . 14 4 Energy Gun 4 | . 7 . Ballistic Gun 7 | . 8 7 Ballistic Cannon 1 | . . 2 Naked Turns . | . . . Heaviest Build 13 | 13 13 12 Greatest Support 32 | 32 32 20 Greatest Overweight (x) 2 | 1 2 2 Average Overweight (x) . | . . . Largest Inventory Capacity 8 | 8 8 8 Average Capacity 7 | 7 8 6 Most Carried 8 | 2 8 6 Average Carried 1 | . 2 2 Final Capacity 8 | 8 8 5 Final Carried 5 | . 5 . Class Distribution -------------------- 81% | Mutant 18% | Scavenger-Mutant Dominant Class ---------------- Mutant | -10/Materials Mutant | -10/Mines Resources | -11 -10 -10 ----------- Run | Jun Mat Min Matter Collected 380 | 228 64 88 Remotely . | . . . Salvage Created 300 | 170 94 36 Parts 22 | 7 13 2 Haulers Intercepted . | . . . Recyclers Shooed . | . . . Parts Field Recycled . | . . . Retrieved Matter . | . . . Parts Self-Destructed . | . . . Prevented . | . . . Kills | -11 -10 -10 ------- Run | Jun Mat Min Combat Hostiles Destroyed 8 | . 6 2 Guns 6 | . 6 . Cannons 2 | . . 2 Classes Destroyed 5 | 2 1 2 Tunneler 3 | 3 . . Recycler 1 | 1 . . Swarmer 6 | . 6 . Grunt 1 | . . 1 Assembled 1 | . . 1 Best Kill Streak 6 | 4 6 1 Combat Bots Only 6 | . 6 1 Max Kills in Single Turn 2 | 1 2 1 Gunslinging 1 | . 1 . Exploded . | . . . Melee . | . . . Uniques/NPCs Destroyed . | . . . Combat | -11 -10 -10 -------- Run | Jun Mat Min Damage Taken 729 | 24 188 517 Core 251 | 12 78 161 Absorbed by Shields . | . . . Core Remaining (%) 95 | 95 . . Volleys Fired 30 | 13 8 9 Largest 2 | 2 2 2 Hottest 77 | 60 60 77 Shots Fired 52 | 26 16 10 Gun 48 | 26 16 6 Cannon 4 | . . 4 Launcher . | . . . Special . | . . . Kinetic 31 | 13 8 10 Thermal . | . . . Explosive . | . . . Electromagnetic 21 | 13 8 . Robot Hit Streak 10 | 10 5 3 Robot Miss Streak 4 | 3 2 4 Penetration Max . | . . . Secondary Targets 2 | . 2 . Max Gunslinging Chain 1 | . 1 . Shots Hit Robots 31 | 17 9 5 Core Hits 14 | 5 6 3 Critical Kills 2 | . . 2 Critical Parts Destroyed 1 | . . 1 Critical Strikes 3 | . . 3 Destroy 3 | . . 3 Melee Attacks . | . . . Impact . | . . . Slashing . | . . . Piercing . | . . . Sneak Attacks . | . . . Combat Hostiles . | . . . Follow-up Attacks . | . . . Damage Inflicted 494 | 294 108 92 Guns 350 | 225 108 17 Cannons 75 | . . 75 Explosions 69 | 69 . . Melee . | . . . Ramming . | . . . Kinetic 234 | 101 41 92 Thermal 69 | 69 . . Explosive . | . . . Electromagnetic 191 | 124 67 . Impact . | . . . Slashing . | . . . Piercing . | . . . Highest Corruption 15 | . . 15 Average Corruption 14 | . . 14 Corruption Purged . | . . . Corruption Blocked . | . . . Effects 4 | . . 4 Message Errors 1 | . . 1 Heat Flow Errors 2 | . . 2 Misdirections 1 | . . 1 Overload Shots . | . . . Overflow Damage 24 | 24 . . Projectiles . | . . . Explosions 24 | 24 . . Melee . | . . . Knockbacks . | . . . Impact . | . . . Kinetic . | . . . Secondary . | . . . Self-Inflicted Damage 24 | 24 . . Shots 1 | 1 . . Rammed . | . . . Targets Rammed . | . . . Kicked . | . . . Crushed . | . . . Highest Temperature 178 | 12 . 178 Average Temperature 47 | 12 . 50 Received Heat Transfer 224 | . 54 170 Siege Activations . | . . . Robots Corrupted . | . . . Combat Hostiles . | . . . Parts Fried . | . . . Impact Corruptions . | . . . Robots Melted . | . . . Combat Hostiles . | . . . Parts Melted . | . . . Heat Transferred 100 | 100 . . Parts Sabotaged . | . . . Parts Stolen . | . . . Parts Stripped . | . . . Power Chain Reactions 2 | 2 . . Missiles Intercepted . | . . . Alert | -11 -10 -10 ------- Run | Jun Mat Min Peak Influence 164 | 20 164 78 Initial 63 | . 13 63 Average 53 | 7 91 29 Maximum Alert Level . | . . . Low Security (%) 100 | 100 100 100 Level 1 . | . . . Level 2 . | . . . Level 3 . | . . . Level 4 . | . . . Level 5 . | . . . High Security . | . . . Max Security . | . . . Squads Dispatched 1 | . 1 . Investigation . | . . . Extermination . | . . . Reinforcement 1 | . 1 . Assault . | . . . Garrison . | . . . Intercept . | . . . Searches Triggered . | . . . Construction Impeded . | . . . Haulers Reinforced . | . . . Active Scanning Responses . | . . . Cargo Convoy Interrupts . | . . . Stealth | -11 -10 -10 --------- Run | Jun Mat Min Distress Signals . | . . . Communications Jammed . | . . . Distress Signals . | . . . Times Spotted 33 | . 11 22 Peak Tracking Total 18 | . 5 18 Tactical Retreats 3 | . . 3 Traps | -11 -10 -10 ------- Run | Jun Mat Min Traps Triggered 2 | . 2 . Indirectly . | . . . Trap Hack Attempts . | . . . Triggered . | . . . Disarmed . | . . . Reprogrammed . | . . . Reused . | . . . Traps Extracted . | . . . Installed . | . . . Triggered . | . . . Machines | -11 -10 -10 ---------- Run | Jun Mat Min Machines Disabled . | . . . Max in Single Turn . | . . . Machines Repaired . | . . . Machines Sabotaged . | . . . Overloaded Fab Kills . | . . . Hacking | -11 -10 -10 --------- Run | Jun Mat Min Machines Accessed 2 | . 2 . Terminals 2 | . 2 . Fabricators . | . . . Repair Stations . | . . . Recycling Units . | . . . Scanalyzers . | . . . Garrison Access . | . . . Total Hacks 4 | . 4 . Successful 1 | . 1 . Failed 3 | . 3 . Catastrophic . | . . . Database Lockouts . | . . . Manual 4 | . 4 . Terminals 4 | . 4 . Fabricators . | . . . Repair Stations . | . . . Recycling Units . | . . . Scanalyzers . | . . . Garrison Access . | . . . Terminal Hacks . | . . . Fabricator Hacks . | . . . Repair Station Hacks . | . . . Recycling Unit Hacks . | . . . Scanalyzer . | . . . Garrison Access Hacks . | . . . Unauthorized Hacks 1 | . 1 . Terminals 1 | . 1 . Botnet 1 | . 1 . Fabricators . | . . . Repair Stations . | . . . Recycling Units . | . . . Scanalyzers . | . . . Garrison Access . | . . . Data Cores Recovered . | . . . Used . | . . . Hacking Detections 2 | . 2 . Full Trace Events . | . . . Feedback Events . | . . . Feedback Blocked . | . . . Robot Schematics Acquired . | . . . Robots Built . | . . . Authchips . | . . . Time . | . . . Total Robot Build Rating . | . . . Part Schematics Acquired . | . . . Parts Built . | . . . Authchips . | . . . Time . | . . . Total Part Build Rating . | . . . Parts Repaired . | . . . Time . | . . . Parts Recycled . | . . . Recycled Matter . | . . . Retrieved Matter . | . . . Retrieved Components . | . . . Parts Scanalyzed . | . . . Part Schematics Acquired . | . . . Parts Damaged . | . . . Bothacking | -11 -10 -10 ------------ Run | Jun Mat Min Used RIF Installer . | . . . Robots Hacked . | . . . Non-combat . | . . . Combat . | . . . Robot Hacks Applied . | . . . Relay Couplers Released . | . . . Fabnet Peak Effective % . | . . . Robots Rewired . | . . . Allies Hacked . | . . . Hacks Repelled . | . . . Allies | -11 -10 -10 -------- Run | Jun Mat Min Total Allies 3 | . . 3 Largest Group 3 | . . 3 Highest-Rated Group 40 | . . 40 Highest-Rated Ally 16 | . . 16 Total Orders . | . . . Ally Attacks 29 | . . 29 Total Damage 276 | . . 276 Kills 3 | . . 3 Allies Corrupted . | . . . Allies Melted . | . . . Intel | -11 -10 -10 ------- Run | Jun Mat Min Robot Analysis Total . | . . . Derelict Logs Recovered 1 | . . 1 Drone Launches . | . . . Drone Recoveries . | . . . Exploration | -11 -10 -10 ------------- Run | Jun Mat Min Turns Passed 364 | 89 172 103 Spaces Moved 322 | 37 199 86 Core 14 | 4 1 9 Treads . | . . . Legs 2 | . . 2 Wheels 126 | 33 60 33 Hover . | . . . Flight 180 | . 138 42 Fastest Speed 37 | 50 37 37 Average Speed 65 | 98 57 68 Slowest Speed 205 | 100 205 200 Overloaded Moves . | . . . Propulsion Burnouts . | . . . Robots Hopped 5 | . 1 4 Cave-ins Triggered . | . . . Exploration Rate (%) 22 | 3 33 31 Regions Visited 2 Branch Regions 1 Pre-discovered Areas . | . . . Known Exits Taken . | . . . Unknown Exits Taken 2 | 1 1 . Scrap Searched . | . . . Spaces Dug . | . . . Terrain Destroyed 10 | 8 . 2 Melee . | . . . Projectile 2 | . . 2 AOE 8 | 8 . . Terrain Rammed . | . . . Walls Destroyed . | . . . Machines Disabled . | . . . Actions | -11 -10 -10 --------- Run | Jun Mat Min Total 420 | 63 239 118 Wait 22 | . 12 10 Move 311 | 36 196 79 Hop 4 | . 1 3 Pick Up 20 | 7 9 4 Fast Attach 1 | . 1 . Attach 20 | 7 3 10 Detach 3 | . 2 1 Swap 4 | . 3 1 Drop 5 | . 4 1 Fire 30 | 13 8 9 Melee . | . . . Ram . | . . . Kick . | . . . Crush . | . . . Escape Stasis . | . . . Rewire . | . . . Trap . | . . . Miscellaneous . | . . . Route ------- -11/Junkyard -10/Materials -10/Mines History --------- Turn | Location | Event 22 | -11/Junkyard | Discovered new exit (range 16) 90 | -11/Junkyard | Entered Materials 254 | -10/Materials | Discovered new exit (range 16) 262 | -10/Materials | Entered Mines 280 | -10/Mines | Assembled infested the area 297 | -10/Mines | Core integrity fell below 50% 300 | -10/Mines | System corruption reached 10% 305 | -10/Mines | Learned location of 1 exit from Materials 311 | -10/Mines | Assisted by bots powering up and referring to "LRC-V3" 315 | -10/Mines | Core integrity fell below 20% 365 | -10/Mines | Destroyed by G-47 Trooper with Particle Gun Last Messages --------------- 00314_ Acquired Wheel. 00316_ Acquired 18 matter. 00317_ Destroyed Asb. F-torch. 00318_ Acquired Wheel. 00319_ Lgt. Assault Rifle destroyed. 00323_ Destroyed Asb. Hover Unit. 00325_ as-62021 destroyed. 00326_ Wheel destroyed. 00327_ as-40014 destroyed. 00339_ VN%TBKVPXYFW P6618 DHBUPZOV9ZB| 00342_ K-01 Serf collects debris. 00351_ HV Slug penetrates Wall. 00353_ Lgt. Ion Engine destroyed. 00357_ System corrupted: Heat flow error (+203). 00362_ HV Slug penetrates G-34 Mercenary. 00362_ G-34 Mercenary suffers critical hit (Destroy). 00362_ Destroyed Aluminum Leg. 00364_ HV Slug penetrates G-34 Mercenary. 00364_ G-34 Mercenary suffers critical hit (Destroy). 00364_ G-34 Mercenary destroyed. Map ----- +----------------------------------------------------+ | ???????????????????????????? ## % #? | | ???????????????????????????? %## | | ????????????????????????????????### | | ??????????????????????????????????## ## | | ???????????????????????????????????# % ##? | | ????????????????????????????????#### ! = #?? | | ????????????????????????????????# #?? | | ????????????????????????????????# #? | | ????????????????????????????????# ### #? | | ????????????????????????????????# #?## | | ????????????????????????????????# ###### | | ???????????????????????????????## ##?## ##### | | ??????????????????????????????## #??# #???? | | ??????????????????????????##### """ #??## ##???? | | ??????????????????????????# """ #???# #????? | | ??????????????????????????# """ #???# #????? | | ??????????????????????????# ### """ #???# #????? | | ???????????????????###????# #?## ??? #????? | | ??????????????????## #???# #??## ? #????? | | ??????????????????# #??# #????## ########????? | | ??????????????????# #?# #?????####???????????? | | ???????????????????# ## #???? ##????????????? | | ?????????????????????# ##?? #????????????? | | ?????????????????????## ## #????????????? | | ??????????????????????## % #?????????????? | | ???????????????????????##@ ###?????????????? | | ????????????????????????##g= #???????????????? | | ?????????????????????????#! #???????????????? | | ????????????????????????# % #???????????????? | | ??????????????????????? ##???????????????? | | ?????????????????????? #;##????????????????? | | ????????????????????? ###?????????????????? | | ??????????????????? #???????????????????? | | ?????????????????? ### #???????????????????? | | ????????????????? ???## #???????????????????? | | ??????????????? ?????## ##???????????????????? | | ?????????????? ????????## #????????????????????? | | ????????????????????????# ????????????????????? | | ???????????????????????? ????????????????????? | | ???????????????????????? ????????????????????? | | ????????????????????????# ????????????????????? | | ?????????????????????????## ????????????????????? | | ???????????????????????????# ????????????????????? | | ?????????????????????????????????????????????????? | | ?????????????????????????????????????????????????? | | ?????????????????????????????????????????????????? | | ?????????????????????????????????????????????????? | | ?????????????????????????????????????????????????? | | ?????????????????????????????????????????????????? | | ?????????????????????????????????????????????????? | +----------------------------------------------------+ Best States ------------- Heat Dissipation 25 Energy Generation 10 Energy Capacity 125 Matter Stores 245 Matter Capacity 300 Sight Range 16 Terrain Scan Range 16 Terrain Scan Density 10 Evasion (%) 62 Item Schematics ----------------- None Robot Schematics ------------------ None Fabricated ------------ Nothing Alien Tech Used ----------------- None Achievements -------------- None Challenges ------------ None Game ------ Seed SupercompositeShadingBuckler Manual? 0 Play Time 00:09:21 Cumulative 41.0 hours Start 2023.03.14 @ 15:18:39 End 2023.03.14 @ 15:27:07 Sessions 1 Manual Loads 0 Difficulty Rogue Special Mode None Game No. 61 Rogue 60 Adventurer 1 Explorer 0 Win Type - Total 0 Types 0/0/0/0/0/0/0/0/0 Lore% 19 Gallery% 35 Achievement% 26 Wizard Run 0 Options --------- ASCII 0 Keyboard 0 Movement Mouse Keybinds 0 Fullscreen 1 Font 36/Smallcaps Map View 76x50 Tactical HUD 1 Map Filters NONE Filters NONE Steam 1 RUN: f3c8a3cf-0e56-457e-813b-de34aef8273e